Cogmind - Beta 15 @@@ ROGUE MODE // 2025.08.07 @ 02:05:37 Player: Cracklepappy Result: Destroyed by 1C-UTU with 1C-UTU's Sword "Lootmaker" Performance ------------- Evolutions (1) 500 Regions Visited (6) 1200 Robots Destroyed (107) 535 Value Destroyed (1951) 1951 Prototype IDs (44) 880 Alien Tech Used (0) 0 Bonus (335) 335 TOTAL SCORE: 5401 Bonus ------- Follower Combat Kills 35 Aligned with FarCom 300 Cogmind --------- Core Integrity 0/400 Matter 241/300 Energy 100/100 System Corruption 0% Temperature Cool (0) Movement Core (50) Location -8/Mines Parts ------- > --- POWER (1) -------- (None) > --- PROPULSION (2) --- (None) > --- UTILITY (2) ------ (None) > --- WEAPON (4) ------- Improved Assault Rifle > --- INVENTORY (5) ---- Scrap Suit High-capacity Matter Pod (200) Improved Datajack Peak State ------------ > --- POWER ------------ Heavy Ion Engine > --- PROPULSION ------- Wheel Wheel > --- UTILITY ---------- Cooling System Huge Storage Unit > --- WEAPON ----------- Improved Assault Rifle Improved Assault Rifle Improved Assault Rifle Field Lobotomy Kit > --- INVENTORY -------- Cold Fusion Reactor Reinforced Fission Core Wheel Wheel Armored Wheel Scrap Suit Medium Storage Unit High-capacity Matter Pod High-capacity Matter Pod High-capacity Matter Pod High-capacity Matter Pod Gravity Neutralizer Improved Terrain Scanner Improved Target Analyzer System Purifier Heavy Assault Rifle Autogun Bore Cannon Advanced EMP Blaster Grenade Launcher Grenade Launcher Improved Datajack Mining Laser Plasma Cutter [Rating: 34] Favorites ----------- Power Heavy Ion Engine Engine Heavy Ion Engine Propulsion Wheel Wheel Wheel Utility Huge Storage Unit Device Disposable Heat Sink Storage Huge Storage Unit Processor Improved Targeting Computer Protection Core Shielding Weapon Improved Assault Rifle Energy Gun EM Pulse Gun Energy Cannon Beam Cannon Ballistic Gun Improved Assault Rifle Ballistic Cannon Improved Light Cannon Launcher Grenade Launcher Special Weapon Field Lobotomy Kit Special Melee Weapon Improved Datajack Build | -11 -10 -10 -9 -9 -9 -8 ------- Run | Yrd Mat Min Mat Min Exi Min Slots Evolved 2 | . . . 2 . . . Power . | . . . . . . . Propulsion . | . . . . . . . Utility . | . . . . . . . Weapon 2 | . . . 2 . . . Parts Attached 69 | 11 15 3 17 12 11 . Power 8 | 1 2 . 4 . 1 . Engine 8 | 1 2 . 4 . 1 . Core . | . . . . . . . Reactor . | . . . . . . . Propulsion 18 | 4 3 3 1 6 1 . Treads . | . . . . . . . Leg . | . . . . . . . Wheel 18 | 4 3 3 1 6 1 . Hover . | . . . . . . . Flight . | . . . . . . . Utility 13 | 3 4 . 3 . 3 . Device 7 | 2 2 . 2 . 1 . Storage 3 | 1 2 . . . . . Processor 1 | . . . . . 1 . Hackware . | . . . . . . . Protection 2 | . . . 1 . 1 . Artifact . | . . . . . . . Weapon 30 | 3 6 . 9 6 6 . Energy Gun 3 | 2 1 . . . . . Energy Cannon 1 | . . . 1 . . . Ballistic Gun 14 | 1 . . 6 3 4 . Ballistic Cannon 6 | . 4 . 1 . 1 . Launcher 3 | . . . 1 2 . . Special Weapon 2 | . 1 . . . 1 . Impact Weapon . | . . . . . . . Slashing Weapon . | . . . . . . . Piercing Weapon . | . . . . . . . Special Melee Weapon 1 | . . . . 1 . . Unidentified Prototypes 3 | . . . 3 . . . Parts Lost 40 | . 6 . 4 4 7 19 Power 3 | . 1 . . . 1 1 Propulsion 8 | . 3 . . 2 . 3 Utility 11 | . 1 . . . 2 8 Weapon 18 | . 1 . 4 2 4 7 Highest Loss Streak 18 | . 2 . 2 4 6 18 To Critical Strikes 4 | . . . . . 4 . Average Backups 21 | 4 16 25 24 24 21 5 Power 1 | . 1 2 1 1 1 . Propulsion 2 | 2 2 2 2 3 3 . Utility 7 | . 5 7 7 7 8 3 Weapon 8 | 1 6 12 11 10 7 . Tool/Special . | . . . . . . . Unused Backups 39 | 2 9 2 15 3 5 3 Power 6 | . 1 . 1 . 3 1 Propulsion 6 | 2 1 . . 3 . . Utility 7 | . . . 4 . 1 2 Weapon 18 | . 7 2 9 . . . Tool/Special 2 | . . . 1 . 1 . Average Slot Usage (%) 96 | . 95 100 99 99 98 20 Engine 11 | . 10 14 11 11 11 1 Wheel 22 | . 27 28 22 21 21 2 Device 6 | . 14 14 4 . 5 1 Storage 11 | . 14 14 11 11 11 1 Protection 4 | . . . 6 11 4 . Ballistic Gun 19 | . . . 19 22 30 13 Ballistic Cannon 11 | . 20 27 24 4 . . Launcher 4 | . . . . 17 7 . Special Weapon 1 | . 1 . . . 3 . Peak Build Rating 34 | 7 14 14 21 22 34 26 Average Rating 19 | 6 10 13 19 20 25 5 On Entrance 14 | . 7 14 14 21 20 26 Naked Turns 22 | . . . . . . 22 Heaviest Build 107 | 14 96 96 105 102 107 102 Greatest Support 26 | 26 20 20 20 20 20 20 Greatest Overweight (x) 10 | . 4 4 5 10 5 5 Average Overweight (x) 3 | . 1 4 4 5 4 . Largest Inventory Capacity 25 | 8 25 25 25 25 25 25 Average Capacity 23 | 7 18 25 25 25 25 6 Most Carried 25 | 8 25 25 25 25 25 25 Average Carried 21 | 4 16 25 24 24 22 5 Final Capacity 25 | 8 25 25 25 25 25 5 Final Carried 25 | 8 25 25 25 25 25 4 Class Distribution -------------------- 30% | Mutant 26% | Gunner 24% | Tank 11% | Scavenger-Tank 6% | Commander-Gunner Dominant Class ---------------- Mutant | -10/Materials Mutant | -10/Mines Scavenger-Tank | -9/Materials Tank | -9/Mines Gunner | -9/Exiles Mutant | -8/Mines Resources | -11 -10 -10 -9 -9 -9 -8 ----------- Run | Yrd Mat Min Mat Min Exi Min Matter Collected 4994 | 343 510 441 1599 604 1135 362 Remotely . | . . . . . . . Salvage Created 3080 | 282 423 210 1377 214 461 113 Parts 243 | 26 34 28 92 6 51 6 Haulers Intercepted 6 | . 2 . 4 . . . Recyclers Shooed 2 | . . . 1 1 . . Parts Field Recycled . | . . . . . . . Retrieved Matter . | . . . . . . . Parts Self-Destructed . | . . . . . . . Prevented . | . . . . . . . Kills | -11 -10 -10 -9 -9 -9 -8 ------- Run | Yrd Mat Min Mat Min Exi Min Combat Hostiles Destroyed 67 | . 13 7 28 12 5 2 Guns 13 | . 3 . 7 . 1 2 Cannons 37 | . 8 7 21 1 . . AOE 17 | . 2 . . 11 4 . Classes Destroyed 15 | 3 4 1 3 1 2 1 Worker 8 | 2 2 . 2 2 . . Builder 9 | . 1 2 4 2 . . Tunneler 14 | 9 1 4 . . . . Hauler 6 | . 2 . 4 . . . Recycler 7 | 1 1 . 4 1 . . Mechanic 1 | . . . 1 . . . Turret 1 | . . . . . 1 . Watcher 3 | . . . 3 . . . Swarmer 15 | . 6 3 6 . . . Grunt 25 | . 7 3 14 . . 1 Duelist 1 | . . . . . . 1 Sentry 8 | . . . 8 . . . Demolisher 1 | . . . . 1 . . Zionite 5 | . . . . . 5 . Assembled 16 | . . 1 . 11 4 . Best Kill Streak 8 | 8 3 4 5 5 4 2 Combat Bots Only 5 | . 3 3 4 5 4 2 Max Kills in Single Turn 2 | 1 2 1 2 2 1 1 Gunslinging . | . . . . . . . Exploded 2 | . 2 . . 2 1 . Melee . | . . . . . . . Uniques/NPCs Destroyed 4 | . . . . . 4 . 8R-AWN (-9/Exiles) EX-HEX (-9/Exiles) EX-DEC (-9/Exiles) EX-BIN (-9/Exiles) Combat | -11 -10 -10 -9 -9 -9 -8 -------- Run | Yrd Mat Min Mat Min Exi Min Hostile Shots Fired 305 | . 84 17 104 19 62 19 Missed 73 | . 23 5 30 5 6 4 Hits 232 | . 61 12 74 14 56 15 Melee 9 | . . . . . 2 7 Projectile 223 | . 61 12 74 14 54 8 AOE 7 | . . . . 7 . . Critical Strikes 31 | . . 1 3 . 25 2 Actively Blocked 4 | . . . . . 4 . Damage Taken 3642 | . 597 143 897 424 1105 476 Core 587 | . 137 23 120 40 154 113 Absorbed by Shields . | . . . . . . . Redirected to Shielding 51 | . . . 19 5 27 . Regen/Repaired (Parts) 226 | . 114 . 112 . . . Core Remaining (%) 68 | 100 . 36 . . . . Volleys Fired 367 | 33 67 32 89 23 82 41 Largest 4 | 2 2 2 4 4 4 4 Hottest 132 | 70 100 100 132 102 92 92 Shots Fired 888 | 66 133 54 311 66 202 56 Gun 450 | 66 36 . 86 44 162 56 Cannon 395 | . 96 44 225 4 26 . Launcher 29 | . . . . 18 11 . Special 14 | . 1 10 . . 3 . Kinetic 762 | 33 97 44 296 48 188 56 Thermal 60 | 33 2 10 15 . . . Explosive 29 | . . . . 18 11 . Electromagnetic 34 | . 34 . . . . . Robot Hit Streak 19 | 5 5 3 9 5 19 12 Robot Miss Streak 8 | 3 8 4 6 6 4 6 Penetration Max . | . . . . . . . Secondary Targets 3 | . . . . . 1 2 Max Gunslinging Chain 1 | . . . . . 1 1 Shots Hit Robots 449 | 39 63 19 132 23 146 27 Core Hits 179 | 17 21 13 53 25 42 8 Critical Kills 1 | . . . . . 1 . Critical Parts Destroyed 2 | . . . . . 2 . Critical Strikes 18 | 3 6 1 3 1 4 . Burn 3 | 3 . . . . . . Destroy 5 | . . . . 1 4 . Blast 10 | . 6 1 3 . . . Melee Attacks 4 | . . . . . 4 . Impact . | . . . . . . . Slashing . | . . . . . . . Piercing . | . . . . . . . Sneak Attacks 4 | . . . . . 4 . Combat Hostiles . | . . . . . . . Follow-up Attacks . | . . . . . . . Damage Inflicted 8675 | 414 1364 498 2805 1033 2158 403 Guns 3894 | 414 246 . 685 301 1845 403 Cannons 3684 | . 1039 437 2120 44 44 . Explosions 1073 | . 79 37 . 688 269 . Melee . | . . . . . . . Ramming . | . . . . . . . Kinetic 6919 | 178 1039 437 2628 345 1889 403 Thermal 565 | 236 91 61 177 . . . Explosive 957 | . . . . 688 269 . Electromagnetic 234 | . 234 . . . . . Impact . | . . . . . . . Slashing . | . . . . . . . Piercing . | . . . . . . . Highest Corruption . | . . . . . . . Average Corruption . | . . . . . . . Corruption Purged . | . . . . . . . Corruption Blocked . | . . . . . . . Overload Shots . | . . . . . . . Overflow Damage 104 | . 12 19 3 39 31 . Projectiles 34 | . 12 19 3 . . . Explosions 70 | . . . . 39 31 . Melee . | . . . . . . . Knockbacks 27 | . 13 2 10 2 . . Impact . | . . . . . . . Kinetic 24 | . 12 2 9 1 . . Secondary 3 | . 1 . 1 1 . . Self-Inflicted Damage 104 | . . 23 . 15 66 . Shots 4 | . . 1 . 1 2 . Rammed . | . . . . . . . Targets Rammed . | . . . . . . . Kicked . | . . . . . . . Crushed . | . . . . . . . Highest Temperature 283 | 130 159 125 283 56 39 4 Average Temperature 52 | 39 37 33 82 12 8 4 Received Heat Transfer 675 | . 186 60 348 . . 81 Effects 1 | . . . 1 . . . Energy Bleed 1 | . . . 1 . . . Siege Activations . | . . . . . . . Martial Activations . | . . . . . . . Shielding Activations . | . . . . . . . Robots Disrupted . | . . . . . . . Combat Hostiles . | . . . . . . . Robots Corrupted . | . . . . . . . Combat Hostiles . | . . . . . . . Parts Fried 2 | . 2 . . . . . Impact Corruptions . | . . . . . . . Robots Melted . | . . . . . . . Combat Hostiles . | . . . . . . . Parts Melted 1 | 1 . . . . . . Heat Transferred 1532 | 925 137 100 370 . . . Parts Sabotaged . | . . . . . . . Parts Stolen . | . . . . . . . Parts Stripped . | . . . . . . . Power Chain Reactions 1 | . 1 . . . . . Alert | -11 -10 -10 -9 -9 -9 -8 ------- Run | Yrd Mat Min Mat Min Exi Min Maximum Alert Level 1 | . . . 1 . . . Low Security (%) 76 | 100 100 100 34 100 . 100 Level 1 23 | . . . 65 . . . Level 2 . | . . . . . . . Level 3 . | . . . . . . . Level 4 . | . . . . . . . Level 5 . | . . . . . . . High Security . | . . . . . . . Max Security . | . . . . . . . Peak Influence 359 | 10 145 128 359 107 . 37 Initial 92 | . . 30 . 92 . . Average 91 | 2 55 25 205 12 . 1 Influence Increases 2070 | 60 544 206 1019 164 . 77 Destroy 0b10 Robot/C 1020 | . 260 120 560 20 . 60 Destroy 0b10 Robot/NC 240 | 60 35 30 90 25 . . Destroy Leader 248 | . 44 20 164 10 . 10 Allied During Kill 7 | . . . . . . 7 Successful Hack 113 | . 47 . 59 7 . . Select Force Hacks 60 | . 60 . . . . . Disable Machine 120 | . 60 15 30 15 . . Destroy Structure 142 | . 8 21 26 87 . . Lose Combat Pursuer 120 | . 30 . 90 . . . Influence Decreases 2070 | 60 465 285 781 402 . 77 Entered New Map 195 | . . 49 . 146 . . Time Decay 1518 | 60 405 236 591 216 . 10 Lost Part 150 | . 60 . 40 40 . 10 Lost Ally 57 | . . . . . . 57 Purge Threat 150 | . . . 150 . . . Squads Dispatched 8 | . 3 . 5 . . . Investigation 5 | . 3 . 2 . . . Extermination . | . . . . . . . Reinforcement 3 | . . . 3 . . . Assault . | . . . . . . . Garrison . | . . . . . . . Intercept . | . . . . . . . Searches Triggered . | . . . . . . . Construction Impeded . | . . . . . . . Haulers Reinforced . | . . . . . . . Active Scanning Responses . | . . . . . . . Cargo Convoy Interrupts . | . . . . . . . Stealth | -11 -10 -10 -9 -9 -9 -8 --------- Run | Yrd Mat Min Mat Min Exi Min Distress Signals 6 | . 1 . 4 1 . . Communications Jammed . | . . . . . . . Distress Signals . | . . . . . . . Times Spotted 130 | . 30 7 48 16 24 5 Peak Tracking Total 17 | . 4 2 5 17 9 4 Tactical Retreats 18 | . 2 . 4 1 11 . Traps | -11 -10 -10 -9 -9 -9 -8 ------- Run | Yrd Mat Min Mat Min Exi Min Traps Triggered 2 | . 1 . 1 . . . Indirectly . | . . . . . . . Trap Hack Attempts . | . . . . . . . Triggered . | . . . . . . . Disarmed . | . . . . . . . Reprogrammed . | . . . . . . . Reused . | . . . . . . . Traps Extracted . | . . . . . . . Installed . | . . . . . . . Triggered . | . . . . . . . Machines | -11 -10 -10 -9 -9 -9 -8 ---------- Run | Yrd Mat Min Mat Min Exi Min Machines Disabled 21 | . 5 1 2 1 12 . Max in Single Turn 2 | . 1 1 1 1 2 . Machines Repaired . | . . . . . . . Machines Dismantled . | . . . . . . . Machines Sabotaged . | . . . . . . . Overloaded Fab Kills . | . . . . . . . Hacking | -11 -10 -10 -9 -9 -9 -8 --------- Run | Yrd Mat Min Mat Min Exi Min Machines Accessed 21 | . 10 . 8 1 2 . Terminals 14 | . 7 . 6 1 . . Fabricators . | . . . . . . . Repair Stations 2 | . 1 . 1 . . . Recycling Units 2 | . 2 . . . . . Scanalyzers 1 | . . . 1 . . . Garrison Access . | . . . . . . . Total Hacks 76 | . 35 . 35 4 2 . Successful 45 | . 21 . 20 2 2 . Failed 31 | . 14 . 15 2 . . Catastrophic 4 | . 1 . 1 2 . . Database Lockouts . | . . . . . . . Manual 44 | . 24 . 16 3 1 . Terminals 50 | . 25 . 21 4 . . Fabricators . | . . . . . . . Repair Stations 14 | . 7 . 7 . . . Recycling Units 3 | . 3 . . . . . Scanalyzers 7 | . . . 7 . . . Garrison Access . | . . . . . . . Terminal Hacks 17 | . 8 . 5 2 2 . Record 1 | . . . . . 1 . Part Schematic 5 | . 4 . . 1 . . Robot Schematic 1 | . 1 . . . . . Prototype ID Bank 2 | . . . 2 . . . Branch Access Points 1 | . . . 1 . . . Unreport Threat 1 | . . . 1 . . . Locate Traps 2 | . 2 . . . . . Recall Investigation 1 | . . . . 1 . . Hauler Manifests 2 | . 1 . 1 . . . Proto ID Catalog 1 | . . . . . 1 . Fabricator Hacks . | . . . . . . . Repair Station Hacks 7 | . 4 . 3 . . . Scan Component 4 | . 2 . 2 . . . Repair 3 | . 2 . 1 . . . Recycling Unit Hacks . | . . . . . . . Scanalyzer 6 | . . . 6 . . . Insert Component 3 | . . . 3 . . . Analyze 3 | . . . 3 . . . Garrison Access Hacks . | . . . . . . . Unauthorized Hacks 15 | . 9 . 6 . . . Terminals 13 | . 7 . 6 . . . Assimilate 1 | . 1 . . . . . Operators 1 | . 1 . . . . . Skim 11 | . 5 . 6 . . . Fabricators . | . . . . . . . Repair Stations . | . . . . . . . Recycling Units 2 | . 2 . . . . . Tunnel 2 | . 2 . . . . . Scanalyzers . | . . . . . . . Garrison Access . | . . . . . . . Data Cores Recovered . | . . . . . . . Used . | . . . . . . . Hacking Detections 17 | . 8 . 8 1 . . Full Trace Events 2 | . 1 . 1 . . . Feedback Events . | . . . . . . . Feedback Blocked . | . . . . . . . Robot Schematics Acquired 1 | . 1 . . . . . Robots Built . | . . . . . . . Authchips . | . . . . . . . Time . | . . . . . . . Total Robot Build Rating . | . . . . . . . Part Schematics Acquired 8 | . 4 . 3 1 . . Parts Built . | . . . . . . . Authchips . | . . . . . . . Time . | . . . . . . . Total Part Build Rating . | . . . . . . . Parts Repaired 3 | . 2 . 1 . . . Time 80 | . 64 . 16 . . . Parts Recycled . | . . . . . . . Recycled Matter . | . . . . . . . Retrieved Matter . | . . . . . . . Retrieved Components . | . . . . . . . Parts Scanalyzed 3 | . . . 3 . . . Part Schematics Acquired 3 | . . . 3 . . . Parts Damaged . | . . . . . . . Bothacking | -11 -10 -10 -9 -9 -9 -8 ------------ Run | Yrd Mat Min Mat Min Exi Min Used RIF Installer . | . . . . . . . Robots Hacked 4 | . . . . . 4 . Non-combat 3 | . . . . . 3 . Combat 1 | . . . . . 1 . Robot Hacks Applied 4 | . . . . . 4 . parse_system 4 | . . . . . 4 . Relay Couplers Released . | . . . . . . . Fabnet Peak Effective % . | . . . . . . . Robots Rewired . | . . . . . . . Allies Hacked . | . . . . . . . Hacks Repelled . | . . . . . . . Allies | -11 -10 -10 -9 -9 -9 -8 -------- Run | Yrd Mat Min Mat Min Exi Min Total Allies 7 | . 1 . . 3 3 . Largest Group 4 | . 1 1 . 3 4 3 Highest-Rated Group 53 | . 10 10 . 40 53 42 Highest-Rated Ally 16 | . 10 10 . 16 16 16 Total Orders 2 | . . . . . 2 . STAY 1 | . . . . . 1 . FOLLOW 1 | . . . . . 1 . Ally Attacks 15 | . . . . 3 . 12 Total Damage 136 | . . . . . . 136 Kills 1 | . . . . . . 1 Allies Corrupted 1 | . . 1 . . . . Allies Melted . | . . . . . . . Field Lobotomies 3 | . . . . . 3 . Intel | -11 -10 -10 -9 -9 -9 -8 ------- Run | Yrd Mat Min Mat Min Exi Min Active Infowar (turns) 1792 | 203 1589 . . . . . Seismic 1792 | 203 1589 . . . . . Robot Analysis Total . | . . . . . . . Derelict Logs Recovered 4 | . . 1 . 3 . . Drone Launches . | . . . . . . . Drone Recoveries . | . . . . . . . Exploration | -11 -10 -10 -9 -9 -9 -8 ------------- Run | Yrd Mat Min Mat Min Exi Min Turns Passed 11065 | 277 1610 998 2436 1324 4167 253 Spaces Moved 6548 | 160 1183 604 1085 759 2460 297 Core 295 | 1 . . . . . 294 Treads . | . . . . . . . Legs . | . . . . . . . Wheels 6253 | 159 1183 604 1085 759 2460 3 Hover . | . . . . . . . Flight . | . . . . . . . Fastest Speed 50 | 50 80 140 140 155 140 50 Average Speed 136 | 86 106 140 154 155 149 51 Slowest Speed 230 | 90 140 140 155 230 155 155 Overloaded Moves . | . . . . . . . Propulsion Burnouts . | . . . . . . . Robots Hopped . | . . . . . . . Potential Cave-ins 1 | . . . . 1 . . Cave-ins Triggered . | . . . . . . . Time Travels 1 | . . . . . 1 . Exploration Rate (%) 69 | 5 99 97 83 98 91 14 Regions Visited 6 Branch Regions 4 Pre-discovered Areas 10 | . 3 1 3 2 1 . Known Exits Taken 4 | . . 1 1 1 1 . Unknown Exits Taken 2 | 1 1 . . . . . Scrap Searched 3 | . . 2 . 1 . . Spaces Dug 50 | . 1 1 . 38 10 . Terrain Destroyed 224 | . 8 23 17 124 52 . Melee . | . . . . . . . Projectile 44 | . 8 9 17 . 10 . AOE 180 | . . 14 . 124 42 . Terrain Rammed . | . . . . . . . Walls Destroyed . | . . . . . . . Machines Disabled . | . . . . . . . Actions | -11 -10 -10 -9 -9 -9 -8 --------- Run | Yrd Mat Min Mat Min Exi Min Total 7977 | 236 1400 685 1648 858 2799 351 Wait 763 | 18 85 32 396 45 178 9 Move 6542 | 159 1182 603 1084 758 2459 297 Hop . | . . . . . . . Pick Up 109 | 10 34 4 27 6 27 1 Fast Attach 18 | 8 3 . 3 2 1 1 Attach 29 | . 6 . 5 3 14 1 Detach 4 | . . . . . 4 . Swap 59 | 3 11 7 18 10 10 . Drop 82 | 5 12 7 26 11 20 1 Fire 367 | 33 67 32 89 23 82 41 Melee 4 | . . . . . 4 . Ram . | . . . . . . . Kick . | . . . . . . . Crush . | . . . . . . . Escape Stasis . | . . . . . . . Rewire . | . . . . . . . Trap . | . . . . . . . Miscellaneous . | . . . . . . . Route ------- -11/Scrapyard -10/Materials (discovered 6 exits: *Mat x3 / [*Min x2] / *Sub) -10/Mines (discovered 3 exits: *Mat x2 / *Sub) -9/Materials (discovered 4 exits: [*Mat x3] / *Min) -9/Mines (discovered 4 exits: [*Mat x2] / *Exi / [*Zio]) -9/Exiles (discovered 2 exits: *Min x2) -8/Mines History --------- Turn | Location | Event 29 | -11/Scrapyard | Discovered new exit (range 16) 278 | -11/Scrapyard | Entered Materials 323 | -10/Materials | Build established: Mutant 385 | -10/Materials | Discovered new exit (range 9) 440 | -10/Materials | Discovered new exit (range 12) 583 | -10/Materials | Discovered new exit (range 7) 863 | -10/Materials | Discovered new exit (range 9) 1079 | -10/Materials | Discovered new exit (range 4) 1201 | -10/Materials | Learned Storage security intel 1232 | -10/Materials | Identified exit to Subcaves 1260 | -10/Materials | Learned location of 1 exit from Recycling 1306 | -10/Materials | Learned location of 2 exits from Mines 1707 | -10/Materials | Repaired Imp. Light Cannon 1741 | -10/Materials | Repaired Imp. Light Cannon 1779 | -10/Materials | Core integrity fell below 50% 1888 | -10/Materials | Entered Mines 1888 | -10/Mines | Accompanied by 1 ally 1889 | -10/Mines | Identified exit to Materials 1911 | -10/Mines | Met a Derelict bent on vengeance 1940 | -10/Mines | A weapon hastily lodged in a ceiling crevice suddenly fell to the ground 1975 | -10/Mines | Excavation squad dispatched 1975 | -10/Mines | A large section of the Mines collapsed 2369 | -10/Mines | Found a hidden stash of uninstalled traps 2746 | -10/Mines | Learned location of Storage (-7) 2886 | -10/Mines | Entered Materials 2886 | -9/Materials | Evolved 2 slots: Weapon x2 2887 | -9/Materials | Identified exit to Mines 3192 | -9/Materials | Build established: Gunner 3309 | -9/Materials | Discovered new exit (range 3) 3771 | -9/Materials | Discovered new exit (range 16) 4055 | -9/Materials | Repaired Imp. Light Cannon 4162 | -9/Materials | Discovered new exit (range 8) 4491 | -9/Materials | Build established: Scavenger-Tank 4963 | -9/Materials | Learned location of Recycling (-7) 5015 | -9/Materials | Learned location of 1 exit from Recycling 5105 | -9/Materials | Learned 2 Storage zone layouts 5115 | -9/Materials | Learned 2 Storage zone layouts 5136 | -9/Materials | Learned Storage emergency access door positions 5168 | -9/Materials | Learned Recycling recycling unit intel 5322 | -9/Materials | Entered Mines 5323 | -9/Mines | Identified exit to Exiles 5327 | -9/Mines | Discovered new exit (range 10) 5453 | -9/Mines | Assembled infested the area 5458 | -9/Mines | Assisted by a Guerilla fighting off Assembled 5509 | -9/Mines | Lost 4 parts (2n2w) 5722 | -9/Mines | Found a Scrap Suit stashed away for nefarious purposes 5726 | -9/Mines | Found Scrap Suit 5785 | -9/Mines | Build established: Tank 5829 | -9/Mines | Discovered new exit (range 6) 5838 | -9/Mines | Assisted by bots powering up and referring to "LRC-V3" 5941 | -9/Mines | Learned location of Zion (-7) 6059 | -9/Mines | Learned Materials security intel 6192 | -9/Mines | Deemed a non-threat by the Exiles lab entrance 6275 | -9/Mines | A Derelict revealed a hidden shortcut to a safe place 6646 | -9/Mines | Entered Exiles 6646 | -9/Exiles | Accompanied by 2 allies 6647 | -9/Exiles | Identified exit to Mines 6688 | -9/Exiles | Met 8R-AWN 6712 | -9/Exiles | Met EX-HEX 6780 | -9/Exiles | Met EX-DEC 6834 | -9/Exiles | Discovered exit to Mines (range 10) 7103 | -9/Exiles | Met EX-BIN 7488 | -9/Exiles | Aligned with FarCom system 7489 | -9/Exiles | Given EX-Vault access code 7523 | -9/Exiles | Opened EX-Vault 7559 | -9/Exiles | Warned to stay clear of 0b10 Research branches 7633 | -9/Exiles | Build established: Mutant 7939 | -9/Exiles | Build established: Tank 8123 | -9/Exiles | Attacked by the Exiles 8241 | -9/Exiles | Core integrity fell below 50% 8290 | -9/Exiles | Destroyed 8R-AWN 8318 | -9/Exiles | Lost 6 parts (1p1u4w) 8544 | -9/Exiles | Build established: Gunner 8749 | -9/Exiles | Found Chronowheel 8881 | -9/Exiles | Activated Chronowheel 8881 | -9/Exiles | Spacetime reconverged on an earlier point 9028 | -9/Exiles | Found Field Lobotomy Kit 9206 | -9/Exiles | Destroyed EX-HEX 9209 | -9/Exiles | Assimilated 43-QRO(z) with FLK Orb 9260 | -9/Exiles | Destroyed EX-DEC 9304 | -9/Exiles | Destroyed EX-BIN 9322 | -9/Exiles | Found System Purifier 9422 | -9/Exiles | Assimilated W1-DM0 with FLK Orb 10104 | -9/Exiles | Assimilated DK-RAY with FLK Orb 10398 | -9/Exiles | Build established: Commander-Gunner 10813 | -9/Exiles | Entered Mines 10813 | -8/Mines | Accompanied by 4 allies 10814 | -8/Mines | 1C-UTU came to Exiles' defense 10816 | -8/Mines | Core integrity fell below 20% 10835 | -8/Mines | Released all parts (8) 10861 | -8/Mines | Lost 4 allies 10866 | -8/Mines | Lost 18 parts (1p3n8u6w) 11066 | -8/Mines | Destroyed by 1C-UTU with 1C-UTU's Sword "Lootmaker" Last Messages --------------- 10836_ Hcp. Matter Pod crushed and broken. 10836_ Acquired Imp. Assault Rifle. 10839_ Acquired 10 matter. 10839_ Acquired 100 matter. 10849_ R-06 Scavenger collects Imp. Terrain Scanner. 10849_ 1C-UTU sneak attacks. 10849_ R-06 Scavenger destroyed. 10884_ Acquired 84 matter. 10884_ Acquired 30 matter. 10947_ Acquired 48 matter. 10948_ Acquired 74 matter. 10989_ Imp. Assault Rifle destroyed. 11000_ 1C-UTU sneak attacks. 11000_ R-06 Scavenger destroyed. 11003_ Acquired Imp. Assault Rifle. 11032_ R-06 Scavenger collects Tractor Beam. 11035_ R-06 Scavenger collects Lgt. Ion Engine. 11036_ 1C-UTU sneak attacks. 11036_ R-06 Scavenger destroyed. 11066_ 1C-UTU follow-up attacks with Prototype Slashing Weapon. Map ----- +----------------------------------------------------+ | ???????????????????????????????????????? | | ???????????????????????????????????????? | | ???????????????????????????????????????? | | ???????????????????####????????????????? | | ??????????????????##![##???????????????? | | ??????????????????#]=[ ##??????????????? | | ??????????????????#!%*= #??????????????? | | ??????????????????## /=!#??????????????? | | ???????????????????#! =##??????????????? | | ???????????????????# *##???????????????? | | ???????????????????##*#????????????????? | | ????????????????????#*#????????????????? | | ????????????????????# #####????????????? | | ????????????????????# ## ##???????????? | | ????????????????????# # ##??????????? | | ????????????????????# = #??????????? | | ????????????????????#! = #???####???? | | ????????????????????# ##??## ##??? | | ????????????????????# #####???# #??? | | ????????????????????# #???????# ##?? | | ????????????????????# #???????# #?? | | ????????????????????# #???????# #?? | | ????????????????????#! ######??# ##?? | | ????????????????????#%! #### ##??? | | ???????????### #???##%* ## #???? | | ??????????## ##!! @l #???? | | ??????????# t #???? | | ?????????# ## ## ##???? | | ????????# ???## ##### #####????? | | ???????# ???????### #???# #????????? | | ???????? ????????????# #???# #????????? | | ????????????????????? ??? #????????? | | ???????????????????? ##??###????????? | | ???????????????????? ??????????????? | | ??????????????????? ??????????????? | | ?????????????????? ##?????????????? | | ??????????????????# #??????????????? | | ??????????????????# ??????????????? | | ??????????????????## $ ??????????????? | | ???????????????????#### ??????????????? | | ??????????????????????? ??????????????? | | ??????????????????????? ??????????????? | | ??????????????????????? ??????????????? | | ???????????????????????????????????????? | | ???????????????????????????????????????? | | ???????????????????????????????????????? | | ???????????????????????????????????????? | | ???????????????????????????????????????? | | ???????????????????????????????????????? | | ???????????????????????????????????????? | +----------------------------------------------------+ Best States ------------- Heat Dissipation 50 Coolant Potential 50 Energy Generation 14 Energy Capacity 280 Matter Stores 300 Matter Capacity 300 Sight Range 16 Terrain Scan Density 10 Armor Coverage 225 Core Shielding 20 Evasion (%) 50 Targeting Accuracy 6 Item Schematics ----------------- Wheel | -10/Materials | Hacked Assault Rifle | -10/Materials | Hacked Targeting Computer | -10/Materials | Hacked Heat Sink | -10/Materials | Hacked Bore Cannon | -9/Materials | Scanalyzed Arm. Wheel | -9/Materials | Scanalyzed Med. Storage Unit | -9/Materials | Scanalyzed Cargo Storage Unit | -9/Mines | Hacked Robot Schematics ------------------ M-13 Machinist | -10/Materials | Hacked Fabricated ------------ Nothing Repaired ---------- Imp. Light Cannon | 52% | -10/Materials Imp. Light Cannon | 62% | -10/Materials Imp. Light Cannon | 17% | -9/Materials Alien Tech Used ----------------- None Achievements -------------- None Challenges ------------ None Game ------ Seed ReinforcedNetworkClaymores Manual? 0 Play Time 01:02:38 Cumulative 1205.2 hours Start 2025.08.07 @ 01:04:47 End 2025.08.07 @ 02:05:37 Sessions 1 Manual Loads 0 Difficulty Rogue Special Mode None Game No. 582 Rogue 582 Adventurer 0 Explorer 0 Win Type - Total 23 Types 10/4/3/0/1/1/2/2/0/0 Lore% 90 Gallery% 90 Achievement% 84 Wizard Run 0 Options --------- Layout 0 ASCII 0 Keyboard 0 Movement Numpad Keybinds 0 Fullscreen 2 Font 24/Smallcaps Map View 76x50 Zoom Use 0% Tactical HUD 1 Map Filters NONE Filters SHIFT_HUE(315) Steam 1 RUN: ea4fce5b-6bf5-4a8c-b5aa-65b118dfdcf6